bitfinex-derivatives/quotes_BTCF0:USTF0_20260214
["timestamp","ask_amount","ask_price","bid_price","bid_amount"]
[1771045804316,0.029094,68840.0,68834.0,0.014535]
[1771045804521,0.001,68837.0,68834.0,0.016535]
[1771045804911,0.043628,68840.0,68834.0,0.014535]
[1771045805112,0.001,68838.0,68834.0,0.014535]
[1771045805613,0.001,68837.0,68834.0,0.017535]
[1771045805815,0.001,68837.0,68834.0,0.003]
[1771045806623,0.014535,68835.0,68833.0,0.01456]
[1771045807922,0.001,68835.0,68833.0,0.01856]
[1771045809224,0.001,68835.0,68833.0,0.02056]
[1771045809926,0.001,68835.0,68833.0,0.006]
[1771045810127,0.013535,68837.0,68833.0,0.02056]
[1771045810526,0.014534,68841.0,68833.0,0.02056]
[1771045810726,0.014535,68837.0,68833.0,0.02056]
[1771045811629,0.002,68837.0,68833.0,0.01556]
[1771045811832,0.014534,68838.0,68833.0,0.01556]
[1771045812124,0.014535,68837.0,68833.0,0.01556]
[1771045813529,0.011535,68837.0,68833.0,0.01556]
[1771045813731,0.014534,68838.0,68833.0,0.01556]
[1771045814130,0.014535,68837.0,68833.0,0.01556]
[1771045814432,1e-08,68842.0,68835.0,0.014535]
[1771045814624,0.08722527,68842.0,68836.0,0.014535]
[1771045814829,0.01456,68843.0,68836.0,0.029095]
[1771045815130,0.014533,68845.0,68836.0,0.029095]
[1771045815432,0.07263008,68842.0,68836.0,0.029095]
[1771045815730,0.08716408,68842.0,68836.0,0.029095]
[1771045816025,0.014533,68846.0,68840.0,0.014534]
[1771045816224,0.00812675,68845.0,68840.0,0.014534]
[1771045816532,0.02265975,68845.0,68840.0,0.014534]
[1771045816835,0.07463008,68842.0,68840.0,0.014534]
[1771045817026,0.029093,68845.0,68840.0,0.014534]
[1771045817229,0.07263008,68842.0,68840.0,0.015534]
[1771045817431,0.029093,68845.0,68840.0,0.015534]
[1771045817625,0.07263008,68842.0,68840.0,0.015534]
[1771045817826,0.030093,68845.0,68840.0,0.016534]
[1771045818026,0.029093,68846.0,68841.0,0.014534]
[1771045818226,0.029093,68846.0,68842.0,0.014533]
[1771045818421,0.029093,68846.0,68841.0,0.014534]
[1771045818422,0.05809708,68842.0,68841.0,0.014534]
[1771045818623,0.014532,68848.0,68841.0,0.014534]
[1771045818826,0.07262884,68844.0,68842.0,0.014533]
[1771045819027,0.01456,68846.0,68842.0,0.014533]
[1771045819231,0.01456,68846.0,68841.0,0.014534]
[1771045819232,0.07262797,68844.0,68841.0,0.014534]
[1771045819429,0.02963495,68844.0,68841.0,0.014534]
[1771045819740,0.05497588,68846.0,68841.0,0.014534]
[1771045819934,0.001,68845.0,68841.0,0.014534]
[1771045820429,0.08406888,68846.0,68841.0,0.014534]
[1771045820629,0.001,68844.0,68841.0,0.019534]
[1771045821331,0.014533,68845.0,68839.0,0.029094]
[1771045821635,0.014533,68845.0,68840.0,0.014534]
[1771045823735,0.001,68844.0,68841.0,0.003]
[1771045824034,0.014534,68840.0,68834.0,0.014535]
[1771045824340,0.014534,68839.0,68835.0,0.01456]
[1771045824528,0.014534,68839.0,68836.0,0.01456]
[1771045824830,0.014534,68839.0,68833.0,0.014535]
[1771045825034,0.014534,68839.0,68834.0,0.01456]
[1771045825736,0.014533,68843.0,68834.0,0.029095]
[1771045826034,0.014534,68842.0,68835.0,0.014535]
[1771045826234,0.014534,68841.0,68835.0,0.014535]
[1771045826630,0.001,68839.0,68835.0,0.016535]
[1771045827134,0.014534,68841.0,68835.0,0.015535]
[1771045827636,0.014534,68841.0,68835.0,0.014535]
[1771045827935,0.001,68839.0,68835.0,0.016535]
[1771045828134,0.014533,68844.0,68837.0,0.014534]
[1771045828337,0.014533,68843.0,68838.0,0.01456]
[1771045828739,0.08718586,68846.0,68839.0,0.014534]
[1771045829037,0.04909086,68846.0,68840.0,0.014534]
[1771045829241,0.001,68841.0,68840.0,0.014534]
[1771045829443,0.014532,68850.0,68844.0,0.014533]
[1771045829736,0.01456,68856.0,68848.0,0.014532]
[1771045829937,0.01453,68857.0,68851.0,0.014532]
[1771045830237,0.01453,68857.0,68851.0,0.029092]
[1771045830629,0.07261388,68858.0,68851.0,0.029092]
[1771045830830,0.01453,68857.0,68851.0,0.029092]
[1771045831233,0.014531,68856.0,68851.0,0.01556]
[1771045832533,0.014531,68856.0,68851.0,0.01456]
[1771045832837,0.014531,68854.0,68851.0,0.01456]
[1771045833041,0.014531,68854.0,68846.0,0.029064]
[1771045833042,0.014531,68852.0,68846.0,0.029064]
[1771045833245,0.014531,68852.0,68851.0,0.001]
[1771045833536,0.014531,68852.0,68846.0,0.014532]
[1771045833940,0.014531,68852.0,68847.0,0.01456]
[1771045834242,0.014531,68853.0,68847.0,0.01456]
[1771045834644,0.014531,68853.0,68847.0,0.029092]
[1771045834838,0.002,68852.0,68851.0,0.001]
[1771045835046,0.002,68852.0,68851.0,0.01456]
[1771045835836,0.001,68852.0,68851.0,0.01456]
[1771045836035,0.001,68852.0,68850.0,0.01456]
[1771045836544,0.001,68852.0,68851.0,0.002]
[1771045836944,0.001,68852.0,68850.0,0.01456]
[1771045837535,0.001,68852.0,68850.0,0.01856]
[1771045837735,0.001,68852.0,68850.0,0.01456]
[1771045838447,0.029062,68854.0,68850.0,0.01456]
[1771045839148,0.002,68852.0,68850.0,0.01556]
[1771045839540,0.002,68852.0,68850.0,0.01456]
[1771045839742,0.031062,68854.0,68850.0,0.01556]
[1771045840149,0.031062,68854.0,68850.0,0.01456]
[1771045840351,0.016531,68854.0,68850.0,0.01456]
[1771045840950,0.014531,68854.0,68850.0,0.01456]
[1771045842445,0.031062,68854.0,68850.0,0.01556]
[1771045843449,0.016531,68854.0,68850.0,0.01556]
[1771045844452,0.031062,68854.0,68850.0,0.01556]
[1771045846042,0.014531,68853.0,68850.0,0.01456]
[1771045847650,0.018531,68853.0,68850.0,0.01556]
[1771045849555,0.018531,68853.0,68850.0,0.01656]
[1771045850452,0.004,68853.0,68850.0,0.031092]
[1771045850653,0.004,68853.0,68850.0,0.01456]
[1771045850950,0.004,68853.0,68850.0,0.029092]
[1771045851153,0.01456,68858.0,68854.0,0.014531]
[1771045851454,0.01456,68859.0,68854.0,0.014531]
[1771045851654,0.06651486,68856.0,68852.0,0.014531]
[1771045851856,0.01456,68859.0,68853.0,0.014531]
[1771045852055,0.01453,68858.0,68853.0,0.014531]
[1771045852256,0.07261531,68856.0,68853.0,0.014531]
[1771045853762,0.07261531,68856.0,68853.0,0.016531]
[1771045854461,0.07561531,68856.0,68853.0,0.015531]
[1771045855958,0.07661531,68856.0,68853.0,0.016531]
[1771045856258,0.07261531,68856.0,68854.0,0.014531]
[1771045857463,0.07261531,68856.0,68854.0,0.016531]
[1771045857464,0.07561531,68856.0,68854.0,0.016531]
[1771045857960,0.01456,68860.0,68855.0,0.014531]
[1771045858156,0.07261532,68856.0,68854.0,0.016531]
[1771045859160,0.07261532,68856.0,68855.0,0.001]
[1771045859563,0.07261532,68856.0,68854.0,0.014531]
[1771045860060,0.07361532,68856.0,68854.0,0.002]
[1771045861759,0.014529,68866.0,68854.0,0.002]
[1771045861961,0.014528,68868.0,68856.0,0.07813747]
[1771045862154,0.014528,68867.0,68862.0,0.014529]
[1771045862354,0.10168961,68869.0,68863.0,0.014529]
[1771045862558,0.014528,68868.0,68863.0,0.014529]
[1771045862758,0.014527,68873.0,68867.0,0.014528]
[1771045863057,0.014528,68871.0,68866.0,0.014528]
[1771045863249,0.001,68868.0,68866.0,0.014528]
[1771045864159,0.001,68868.0,68865.0,0.014529]
[1771045865362,0.001,68868.0,68864.0,0.014529]
[1771045865559,0.001,68868.0,68863.0,0.014529]
[1771045865755,0.001,68868.0,68864.0,0.014529]
[1771045865959,0.001,68868.0,68865.0,0.01456]
[1771045867464,0.003,68868.0,68865.0,0.01856]
[1771045869464,0.014528,68869.0,68865.0,0.01456]
[1771045870564,0.015528,68869.0,68865.0,0.01756]
[1771045874067,0.001,68869.0,68865.0,0.01756]
[1771045874268,0.001,68869.0,68865.0,0.032089]
[1771045874964,0.001,68869.0,68865.0,0.046618]
[1771045875263,0.012527,68872.0,68866.0,0.014528]
[1771045875670,0.014527,68872.0,68866.0,0.014528]
[1771045876268,0.001,68869.0,68865.0,0.030089]
[1771045876470,0.006054,68872.0,68865.0,0.030089]
[1771045876772,0.001,68869.0,68865.0,0.031089]
[1771045877067,0.006054,68872.0,68865.0,0.031089]
[1771045877263,0.006054,68872.0,68865.0,0.029089]
[1771045877572,0.014528,68871.0,68865.0,0.029089]
[1771045877969,0.008109,68874.0,68865.0,0.029089]
[1771045878472,0.014528,68871.0,68865.0,0.029089]
[1771045879971,0.015528,68871.0,68865.0,0.035089]
[1771045880971,0.015528,68871.0,68866.0,0.014528]
[1771045881469,0.015528,68871.0,68865.0,0.035089]
[1771045882070,0.014528,68871.0,68865.0,0.029089]
[1771045882964,0.014527,68872.0,68867.0,0.014528]
[1771045883164,0.001,68871.0,68868.0,0.01456]
[1771045883364,0.014527,68873.0,68868.0,0.01456]
[1771045883564,0.014527,68873.0,68868.0,0.029088]
[1771045883773,0.08712209,68875.0,68868.0,0.029088]
[1771045883975,0.014527,68873.0,68868.0,0.029088]
[1771045884266,0.029054,68874.0,68868.0,0.01456]
[1771045884569,0.014527,68874.0,68868.0,0.029088]
[1771045884766,0.07259509,68875.0,68869.0,0.014528]
[1771045885073,0.08412209,68875.0,68869.0,0.014528]
[1771045885267,0.08412209,68875.0,68869.0,0.029056]
[1771045885473,0.029086,68879.0,68869.0,0.014528]
[1771045885669,0.001,68871.0,68869.0,0.029056]
[1771045885866,0.01958229,68875.0,68869.0,0.029056]
[1771045886068,0.01958229,68875.0,68870.0,0.014528]
[1771045886069,0.03410929,68875.0,68870.0,0.014528]
[1771045886269,0.001,68875.0,68871.0,0.01456]
[1771045886476,0.014527,68874.0,68871.0,0.01456]
[1771045886672,0.029054,68875.0,68871.0,0.01456]
[1771045886871,0.014527,68875.0,68871.0,0.01456]
[1771045887960,0.07259236,68878.0,68871.0,0.01456]
[1771045888161,0.014525,68881.0,68874.0,0.014527]
[1771045888373,0.01456,68885.0,68876.0,0.014526]
[1771045888574,0.08711023,68884.0,68875.0,0.01456]
[1771045888872,0.00167023,68885.0,68878.0,0.014526]
[1771045889066,0.014525,68883.0,68878.0,0.014526]
[1771045889776,0.014525,68883.0,68876.0,0.014526]
[1771045889777,0.014525,68881.0,68876.0,0.014526]
[1771045889974,0.014525,68882.0,68877.0,0.014526]
[1771045890377,0.014525,68882.0,68878.0,0.01456]
[1771045891073,0.014525,68881.0,68878.0,0.01456]
[1771045891268,0.014526,68879.0,68878.0,0.01456]
[1771045891469,0.014526,68879.0,68876.0,0.001]
[1771045891775,0.014526,68879.0,68873.0,0.014527]
[1771045892276,0.014526,68879.0,68874.0,0.01456]
[1771045893079,0.017526,68879.0,68874.0,0.01456]
[1771045894473,0.014526,68879.0,68874.0,0.01456]
[1771045895074,0.020526,68879.0,68874.0,0.01556]
[1771045895266,0.028526,68879.0,68874.0,0.01656]
[1771045895582,0.014526,68879.0,68874.0,0.01456]
[1771045897875,0.021526,68879.0,68874.0,0.01556]
[1771045899472,0.020526,68879.0,68874.0,0.01556]
[1771045901079,0.014526,68879.0,68874.0,0.01456]
[1771045901979,0.029526,68879.0,68874.0,0.01656]
[1771045903382,0.015,68879.0,68874.0,0.031087]
[1771045903779,0.0725858,68884.0,68877.0,0.014526]
[1771045904077,0.014525,68884.0,68878.0,0.029086]
[1771045904383,0.08711079,68884.0,68878.0,0.029086]
[1771045904583,0.10163579,68884.0,68878.0,0.029086]
[1771045904779,0.08711079,68884.0,68878.0,0.029086]
[1771045905179,0.10163579,68884.0,68878.0,0.029086]
[1771045905577,0.08711079,68884.0,68878.0,0.029086]
[1771045905886,0.014525,68883.0,68878.0,0.029086]
[1771045907488,0.08711079,68884.0,68878.0,0.033086]
[1771045907780,0.08711079,68884.0,68878.0,0.047612]
[1771045908085,0.08711079,68884.0,68878.0,0.033086]
[1771045908285,0.08711079,68884.0,68878.0,0.047612]
[1771045908486,0.08711079,68884.0,68878.0,0.034086]
[1771045908684,0.08036079,68884.0,68878.0,0.034086]
[1771045908986,0.014525,68883.0,68878.0,0.038086]
[1771045909386,0.02095082,68884.0,68878.0,0.038086]
[1771045909686,0.014525,68883.0,68878.0,0.038086]
[1771045910087,0.00359582,68884.0,68878.0,0.038086]
[1771045910390,0.014525,68883.0,68878.0,0.052612]
[1771045910684,0.007525,68883.0,68878.0,0.038086]
[1771045910986,0.00139082,68884.0,68878.0,0.029086]
[1771045911187,0.014525,68883.0,68878.0,0.036086]
[1771045911384,0.014525,68883.0,68878.0,0.050612]
[1771045911885,0.014525,68883.0,68879.0,0.014526]
[1771045912278,0.014525,68883.0,68878.0,0.037086]
[1771045912679,0.01456,68886.0,68879.0,0.014526]
[1771045912885,0.0871108,68884.0,68879.0,0.014526]
[1771045913387,0.014525,68883.0,68879.0,0.014526]
[1771045913690,0.007525,68883.0,68879.0,0.014526]
[1771045914189,0.007525,68883.0,68879.0,0.021526]
[1771045914581,0.014525,68881.0,68879.0,0.007]
[1771045914890,0.014525,68880.0,68879.0,0.01456]
[1771045915088,0.014525,68880.0,68878.0,0.01456]
[1771045916187,0.014525,68880.0,68879.0,0.006]
[1771045917387,0.014525,68880.0,68878.0,0.01756]
[1771045918189,0.014525,68880.0,68879.0,0.002]
[1771045918792,0.014525,68880.0,68878.0,0.01456]
[1771045919391,0.014525,68880.0,68878.0,0.01656]
[1771045920284,0.014525,68880.0,68878.0,0.01456]
[1771045920492,0.014525,68880.0,68879.0,0.002]
[1771045920992,0.014525,68880.0,68878.0,0.01456]
[1771045921793,0.014525,68882.0,68878.0,0.01456]
[1771045921986,0.0871108,68884.0,68879.0,0.003]
[1771045922389,0.014525,68883.0,68879.0,0.003]
[1771045923292,0.0198358,68884.0,68879.0,0.017526]
[1771045923494,0.0172358,68884.0,68879.0,0.017526]
[1771045923694,0.01456,68886.0,68879.0,0.017526]
[1771045923891,0.01452,68907.0,68884.0,0.014525]
[1771045924193,0.014524,68890.0,68884.0,0.014525]
[1771045924395,0.029084,68890.0,68884.0,0.014525]
[1771045924988,0.014524,68889.0,68884.0,0.014525]
[1771045925495,0.014524,68888.0,68883.0,0.014525]
[1771045925889,0.09144693,68891.0,68883.0,0.014525]
[1771045926295,0.08616693,68891.0,68883.0,0.014525]
[1771045926496,0.014524,68888.0,68883.0,0.014525]
[1771045926690,0.009244,68888.0,68883.0,0.014525]
[1771045928098,0.009244,68888.0,68884.0,0.003]
[1771045928589,0.009244,68888.0,68883.0,0.017525]
[1771045929097,0.009244,68888.0,68883.0,0.014525]
[1771045929700,0.009244,68888.0,68884.0,0.003]
[1771045931299,0.009244,68888.0,68884.0,0.004]
[1771045933002,0.014524,68889.0,68884.0,0.004]
[1771045933301,0.014524,68890.0,68884.0,0.004]
[1771045933500,0.10068993,68891.0,68885.0,0.014524]
[1771045933698,0.014523,68890.0,68885.0,0.014524]
[1771045934304,0.10068993,68891.0,68885.0,0.014524]
[1771045934504,0.04666993,68891.0,68885.0,0.014524]
[1771045935105,0.014523,68890.0,68884.0,0.018525]
[1771045935598,0.01521293,68891.0,68884.0,0.018525]
[1771045935799,0.01521293,68891.0,68885.0,0.014524]
[1771045935996,0.01521293,68891.0,68885.0,0.018524]
[1771045936913,0.014523,68890.0,68885.0,0.018524]
[1771045937508,0.014523,68890.0,68885.0,0.004]
[1771045937700,0.014523,68890.0,68885.0,0.018524]
[1771045937901,0.014523,68891.0,68885.0,0.029084]
[1771045938507,0.014523,68891.0,68885.0,0.033084]
[1771045938709,0.014523,68890.0,68885.0,0.033084]
[1771045939207,0.014523,68890.0,68885.0,0.037084]
[1771045939404,0.014523,68891.0,68885.0,0.037084]
[1771045939710,0.10166071,68892.0,68885.0,0.037084]
[1771045939900,0.014523,68891.0,68885.0,0.037084]
[1771045940102,0.014523,68891.0,68885.0,0.031084]
[1771045940407,0.014523,68890.0,68885.0,0.01656]
[1771045941611,0.014523,68890.0,68885.0,0.01756]
[1771045942012,0.014523,68891.0,68886.0,0.014524]
[1771045942513,0.014523,68891.0,68885.0,0.032084]
[1771045942813,0.029046,68891.0,68885.0,0.032084]
[1771045943011,0.014523,68891.0,68885.0,0.046608]
[1771045943314,0.10166071,68892.0,68886.0,0.014524]
[1771045943906,0.014523,68891.0,68885.0,0.029084]
[1771045944210,0.08713771,68892.0,68886.0,0.014524]
[1771045944411,0.10166071,68892.0,68886.0,0.014524]
[1771045944807,0.014523,68891.0,68885.0,0.029084]
[1771045945111,0.014523,68891.0,68886.0,0.014524]
[1771045945304,0.10166071,68892.0,68886.0,0.016524]
[1771045945611,0.014523,68891.0,68886.0,0.002]
[1771045945811,0.014523,68891.0,68885.0,0.029084]
[1771045946498,0.029046,68891.0,68885.0,0.029084]
[1771045947110,0.014523,68891.0,68886.0,0.014524]
[1771045947507,0.014523,68891.0,68885.0,0.030084]
[1771045948213,0.10166071,68892.0,68886.0,0.014524]
[1771045948413,0.014523,68891.0,68886.0,0.001]
[1771045948610,0.014523,68890.0,68886.0,0.001]
[1771045949113,0.03266071,68892.0,68886.0,0.015524]
[1771045949414,0.04318371,68892.0,68886.0,0.001]
[1771045949612,0.014523,68891.0,68886.0,0.015524]
[1771045950114,0.014523,68894.0,68886.0,0.014524]
[1771045950315,0.029083,68893.0,68888.0,0.014524]
[1771045950507,0.016583,68893.0,68888.0,0.014524]
[1771045950708,0.004,68891.0,68888.0,0.029048]
[1771045950906,0.004,68891.0,68888.0,0.029084]
[1771045951310,0.07257656,68892.0,68888.0,0.029084]
[1771045952214,0.07257656,68892.0,68886.0,0.014524]
[1771045952215,0.014523,68891.0,68885.0,0.014524]
[1771045952909,0.015523,68891.0,68885.0,0.014524]
[1771045953109,0.015523,68891.0,68886.0,0.01456]
[1771045953413,0.014523,68891.0,68886.0,0.01456]
[1771045953609,0.002,68891.0,68887.0,0.014524]
[1771045953809,0.002,68891.0,68886.0,0.01456]
[1771045953810,0.002,68891.0,68886.0,0.029084]
[1771045954010,0.07257656,68892.0,68887.0,0.014524]
[1771045954212,0.001,68891.0,68887.0,0.014524]
[1771045954813,0.002,68891.0,68887.0,0.014524]
[1771045959320,0.01456,68895.0,68887.0,0.014524]
[1771045959521,0.014523,68893.0,68887.0,0.014524]
[1771045960121,0.014523,68893.0,68888.0,0.014524]
[1771045960320,0.001,68891.0,68888.0,0.014524]
[1771045960719,0.016523,68893.0,68888.0,0.014524]
[1771045960921,0.016523,68893.0,68886.0,0.01456]
[1771045961223,0.014523,68893.0,68886.0,0.01456]
[1771045961614,0.014523,68893.0,68887.0,0.014524]
[1771045961810,0.014523,68893.0,68888.0,0.002]
[1771045962121,0.014523,68893.0,68888.0,0.016524]
[1771045963024,0.014523,68893.0,68888.0,0.014524]
[1771045963627,0.014523,68893.0,68888.0,0.017524]
[1771045965927,0.014523,68892.0,68888.0,0.017524]
[1771045967325,0.014523,68892.0,68888.0,0.021524]
[1771045967624,0.0870982,68894.0,68889.0,0.029046]
[1771045967829,0.0870982,68894.0,68889.0,0.014523]
[1771045968030,0.1016212,68894.0,68889.0,0.014523]
[1771045968226,0.014523,68893.0,68889.0,0.014523]
[1771045968930,0.014523,68893.0,68888.0,0.020524]
[1771045969123,0.014523,68893.0,68889.0,0.001]
[1771045970230,0.014523,68893.0,68888.0,0.014524]
[1771045970433,0.014523,68893.0,68889.0,0.001]
[1771045970932,0.014523,68891.0,68889.0,0.001]
[1771045971230,0.014523,68891.0,68886.0,0.029084]
[1771045971231,0.006046,68892.0,68886.0,0.029084]
[1771045971437,0.014523,68893.0,68886.0,0.029084]
[1771045971825,0.014523,68892.0,68886.0,0.029084]
[1771045972020,0.014523,68892.0,68889.0,0.001]
[1771045972730,0.014523,68892.0,68887.0,0.014524]
[1771045973436,0.0666212,68894.0,68886.0,0.01456]
[1771045973627,0.014523,68892.0,68887.0,0.014524]
[1771045973930,0.0391442,68894.0,68887.0,0.014524]
[1771045974234,0.0391442,68894.0,68887.0,0.016524]
[1771045974626,0.014523,68892.0,68887.0,0.016524]
[1771045975434,0.014523,68892.0,68887.0,0.014524]
[1771045976429,0.014523,68892.0,68887.0,0.029048]
[1771045976629,0.014523,68892.0,68887.0,0.014524]
[1771045977336,0.016523,68892.0,68887.0,0.014524]
[1771045980937,0.016523,68892.0,68887.0,0.029048]
[1771045981139,0.002,68892.0,68888.0,0.014524]
[1771045982642,0.07315385,68911.0,68891.0,0.07472144]
[1771045982845,0.112948,68910.0,68902.0,0.014521]
[1771045983048,0.01452,68908.0,68901.0,0.014521]
[1771045983337,0.03393228,68907.0,68902.0,0.014521]
[1771045983543,0.01456,68906.0,68902.0,0.014521]
[1771045983743,0.01456,68906.0,68901.0,0.014521]
[1771045983950,0.01452,68905.0,68899.0,0.014521]
[1771045984243,0.014521,68903.0,68897.0,0.014522]
[1771045985046,0.014521,68902.0,68896.0,0.10380344]
[1771045985346,0.08767385,68905.0,68891.0,0.159803]
[1771045985549,0.014522,68897.0,68889.0,0.014523]
[1771045985738,0.014522,68897.0,68888.0,0.014524]
[1771045985739,0.029046,68894.0,68888.0,0.014524]
[1771045985941,0.014523,68893.0,68886.0,0.014524]
[1771045986436,0.014523,68893.0,68887.0,0.01456]
[1771045986746,0.014523,68893.0,68887.0,0.029084]
[1771045989044,0.014523,68893.0,68887.0,0.030084]
[1771045990340,0.014523,68893.0,68887.0,0.029084]
[1771045990540,0.014523,68893.0,68887.0,0.033084]
[1771045991343,0.08708388,68895.0,68889.0,0.014524]
[1771045991546,0.07256088,68895.0,68890.0,0.014523]
[1771045991748,0.00256288,68897.0,68893.0,0.014523]
[1771045991948,0.01452,68898.0,68895.0,0.014522]
[1771045992140,0.014521,68901.0,68895.0,0.014522]
[1771045992641,0.029041,68900.0,68895.0,0.014522]
[1771045994248,0.01452,68900.0,68895.0,0.014522]
[1771045994644,0.01452,68900.0,68895.0,0.015522]
[1771045995049,0.01452,68899.0,68895.0,0.015522]
[1771045996150,0.00352,68899.0,68895.0,0.015522]
[1771045996450,0.01452,68899.0,68895.0,0.015522]
[1771045997149,0.01452,68899.0,68895.0,0.014522]
[1771045997848,0.01052,68899.0,68895.0,0.014522]
[1771045998645,0.00752,68899.0,68894.0,0.014522]
[1771045998839,0.00552,68899.0,68894.0,0.014522]
[1771045999250,0.00478,68899.0,68894.0,0.014522]
[1771045999646,0.01452,68899.0,68894.0,0.014522]
[1771046000050,0.01252,68899.0,68894.0,0.014522]
[1771046000353,0.01052,68899.0,68894.0,0.014522]
[1771046002540,0.07257963,68902.0,68899.0,0.014521]
[1771046002746,0.01452,68907.0,68901.0,0.014521]
[1771046002953,0.01452,68908.0,68902.0,0.014521]
[1771046003154,0.04108088,68908.0,68902.0,0.014521]
[1771046003654,0.02904,68908.0,68902.0,0.014521]
[1771046004049,0.01452,68907.0,68901.0,0.014521]
[1771046005151,0.03104,68908.0,68900.0,0.014521]
[1771046005352,0.04556,68908.0,68901.0,0.014521]
[1771046005550,0.01452,68906.0,68901.0,0.014521]
[1771046005751,0.01452,68907.0,68901.0,0.014521]
[1771046007348,0.01552,68907.0,68901.0,0.014521]
[1771046007549,0.01452,68908.0,68902.0,0.014521]
[1771046007750,0.02904,68908.0,68902.0,0.014521]
[1771046008054,0.01452,68908.0,68903.0,0.014521]
[1771046008352,0.02904,68908.0,68902.0,0.029042]
[1771046008543,0.01452,68908.0,68903.0,0.014521]
[1771046008951,0.02904,68908.0,68902.0,0.014521]
[1771046009250,0.01452,68908.0,68902.0,0.014521]
[1771046009648,0.00259931,68909.0,68904.0,0.01452]
[1771046009649,0.01711831,68909.0,68904.0,0.01452]
[1771046009853,0.01452,68908.0,68904.0,0.01452]
[1771046010053,0.06972945,68909.0,68904.0,0.01452]
[1771046010254,0.08424945,68909.0,68904.0,0.01452]
[1771046010454,0.06113945,68909.0,68904.0,0.01452]
[1771046010858,0.07875845,68909.0,68904.0,0.01452]
[1771046011153,0.03829945,68909.0,68904.0,0.01452]
[1771046011355,0.01452,68909.0,68907.0,0.01452]
[1771046011556,0.014519,68913.0,68907.0,0.01452]
[1771046011756,0.07255555,68913.0,68909.0,0.014519]
[1771046011964,0.07255555,68913.0,68908.0,0.01452]
[1771046012260,0.07255555,68913.0,68910.0,0.014519]
[1771046012261,0.04087555,68913.0,68910.0,0.014519]
[1771046012563,0.01452,68914.0,68911.0,0.014519]
[1771046012856,0.18770483,68917.0,68915.0,0.014518]
[1771046013054,0.01452,68916.0,68914.0,0.014518]
[1771046013254,0.01452,68916.0,68915.0,0.014518]
[1771046013454,0.01452,68916.0,68914.0,0.014518]
[1771046013960,0.01452,68916.0,68911.0,0.014519]
[1771046014267,0.01452,68916.0,68909.0,0.014519]
[1771046014563,0.07255128,68917.0,68913.0,0.014519]
[1771046014759,0.07255128,68917.0,68911.0,0.029039]
[1771046015256,0.07255128,68917.0,68913.0,0.014518]
[1771046015455,0.07255128,68917.0,68911.0,0.029039]
[1771046015659,0.07255128,68917.0,68911.0,0.01452]
[1771046015856,0.07255128,68917.0,68913.0,0.029036]
[1771046016053,0.07255128,68917.0,68914.0,0.014518]
[1771046016362,0.01452,68921.0,68916.0,0.014518]
[1771046016560,0.08706642,68921.0,68917.0,0.014518]
[1771046016760,0.10420195,68924.0,68917.0,0.014518]
[1771046016761,0.029036,68923.0,68917.0,0.014518]
[1771046016960,0.07254683,68921.0,68917.0,0.014518]
[1771046017459,0.07254683,68921.0,68918.0,0.014517]
[1771046017859,0.07254683,68921.0,68920.0,0.014517]
[1771046018253,0.07254683,68921.0,68919.0,0.014517]
[1771046019061,0.07354683,68921.0,68918.0,0.014517]
[1771046019364,0.08806383,68921.0,68915.0,0.014518]
[1771046019552,0.08706383,68921.0,68915.0,0.01452]
[1771046019866,0.014517,68920.0,68911.0,0.014519]
[1771046020054,0.014517,68920.0,68910.0,0.07481293]
[1771046020359,0.07254683,68921.0,68916.0,0.014518]
[1771046020754,0.001,68921.0,68916.0,0.014518]
[1771046021257,0.015517,68921.0,68915.0,0.029038]
[1771046021455,0.014517,68922.0,68915.0,0.029038]
[1771046021456,0.01452,68923.0,68915.0,0.029038]
[1771046022059,0.013797,68921.0,68915.0,0.029038]
[1771046022464,0.014517,68920.0,68915.0,0.01452]
[1771046022756,0.011347,68920.0,68915.0,2e-06]
[1771046022961,0.014517,68922.0,68915.0,2e-06]
[1771046023363,0.014517,68921.0,68915.0,0.01452]
[1771046024060,0.014517,68922.0,68916.0,0.014518]
[1771046024255,0.014517,68921.0,68915.0,0.01452]
[1771046024862,0.016517,68921.0,68915.0,0.01452]
[1771046025463,0.014517,68921.0,68915.0,0.01452]
[1771046025665,0.016517,68921.0,68915.0,0.01452]
[1771046025866,0.014517,68920.0,68915.0,2e-06]
[1771046026863,0.002,68920.0,68915.0,0.01452]
[1771046028565,0.014517,68921.0,68915.0,0.01452]
[1771046029160,0.029037,68922.0,68916.0,0.014518]
[1771046029354,0.01452,68922.0,68917.0,0.014518]
[1771046029758,0.003,68921.0,68916.0,0.014518]
[1771046029960,0.003,68921.0,68917.0,0.014518]
[1771046030664,0.017517,68921.0,68915.0,0.01452]
[1771046030865,0.032034,68921.0,68915.0,0.01452]
[1771046031368,0.014517,68920.0,68915.0,2e-06]
[1771046032664,0.016517,68920.0,68915.0,2e-06]
[1771046032866,0.002,68920.0,68915.0,0.01452]
[1771046035167,0.029034,68921.0,68915.0,0.01452]
[1771046035771,0.001,68920.0,68915.0,0.01452]
[1771046036270,0.029034,68921.0,68915.0,0.01452]
[1771046036771,0.015517,68921.0,68915.0,0.01452]
[1771046037165,0.030034,68921.0,68915.0,0.01452]
[1771046037570,0.015517,68921.0,68915.0,0.01452]
[1771046037771,0.014517,68921.0,68916.0,0.014518]
[1771046037974,0.001,68920.0,68916.0,0.014518]
[1771046038174,0.00039,68920.0,68915.0,0.01452]
[1771046038469,0.013787,68921.0,68915.0,0.01452]